bitfinex-derivatives/quotes_SOLF0:USTF0_20260116
["timestamp","ask_amount","ask_price","bid_price","bid_amount"]
[1768529121655,2.22061219,142.12,142.06,3.24661402]
[1768529121958,2.22061219,142.13,142.06,3.24661402]
[1768529122750,2.22061219,142.09,142.01,3.24661402]
[1768529123751,2.22061219,142.09,142.02,6.3385]
[1768529123953,2.22061219,142.09,142.03,3.24661402]
[1768529124458,2.22061219,142.09,142.03,9.58461402]
[1768529124658,2.22061219,142.1,142.04,3.24661402]
[1768529125046,6.3345,142.12,142.04,3.24661402]
[1768529125254,2.22061219,142.11,142.05,3.24661402]
[1768529126152,2.22061219,142.11,142.05,9.58381402]
[1768529128160,2.22061219,142.11,142.05,3.24661402]
[1768529128762,2.22061219,142.11,142.03,6.3379]
[1768529129156,2.22061219,142.11,142.03,9.67739199]
[1768529129855,8.55541219,142.11,142.03,9.67739199]
[1768529132563,2.22061219,142.09,142.03,3.33949199]
[1768529135368,2.22061219,142.1,142.04,3.33949199]
[1768529137667,6.3348,142.11,142.04,3.33949199]
[1768529137867,2.22061219,142.1,142.04,3.33949199]
[1768529138066,8.55541219,142.11,142.04,3.33949199]
[1768529139869,2.22061219,142.09,142.02,3.33949199]
[1768529140264,2.22061219,142.09,141.95,3.33949199]
[1768529140265,2.22061219,142.03,141.95,3.33949199]
[1768529140870,98.5542,142.09,141.97,3.33949199]
[1768529141170,2.22061219,142.05,141.97,3.33949199]
[1768529141870,2.22061219,142.05,141.98,3.33949199]
[1768529144676,8.55821219,142.05,141.98,3.33949199]
[1768529145975,6.3376,142.05,141.98,3.33949199]
[1768529146275,2.22061219,142.04,141.98,3.33949199]
[1768529146578,2.22061219,142.06,141.98,3.33949199]
[1768529146768,6.3367,142.07,141.98,3.33949199]
[1768529147078,2.22061219,142.06,141.98,3.33949199]
[1768529147478,8.55761219,142.06,141.98,3.33949199]
[1768529148373,6.337,142.06,141.98,3.33949199]
[1768529148575,2.22061219,142.05,141.98,3.33949199]
[1768529150477,2.22061219,142.03,141.98,3.33949199]
[1768529154277,6.337,142.06,141.98,3.33949199]
[1768529154489,2.22061219,142.04,141.98,3.33949199]
[1768529157295,8.55851219,142.04,141.98,3.33949199]
[1768529157484,2.22061219,142.04,141.98,3.33949199]
[1768529159384,8.55851219,142.04,141.96,3.24022149]
[1768529159589,2.22061219,142.02,141.96,3.24022149]
[1768529160779,2.22061219,142.04,141.97,3.24022149]
[1768529161386,6.3377,142.05,141.97,3.24022149]
[1768529161779,6.3377,142.05,141.97,9.58092149]
[1768529161985,6.3377,142.05,141.98,3.24022149]
[1768529163190,3.47310506,142.06,141.98,9.58062149]
[1768529163690,3.47310506,142.06,141.98,3.24022149]
[1768529164491,3.47310506,142.04,141.96,9.58122149]
[1768529165096,6.3383,142.03,141.94,3.24022149]
[1768529165590,6.3389,142.02,141.94,9.58242149]
[1768529166593,9.81120506,142.04,141.95,9.58182149]
[1768529166794,9.81120506,142.04,141.96,3.24022149]
[1768529166995,3.47310506,142.01,141.96,3.24022149]
[1768529168194,3.47310506,142.01,141.93,6.3423]
[1768529168396,3.47310506,142.01,141.94,3.24022149]
[1768529168896,9.81230506,142.01,141.94,3.24022149]
[1768529170098,6.3396,142.0,141.92,3.24022149]
[1768529172799,6.3396,142.0,141.93,9.58282149]
[1768529173098,6.3396,142.0,141.93,3.24022149]
[1768529174901,6.3396,142.0,141.93,9.58282149]
[1768529177498,6.3402,141.99,141.93,3.24022149]
[1768529178202,3.47310506,141.97,141.9,3.24022149]
[1768529178597,3.47310506,141.95,141.88,3.24022149]
[1768529178905,98.6282,141.99,141.88,3.24022149]
[1768529179097,3.47310506,141.97,141.88,3.24022149]
[1768529179299,3.47310506,141.97,141.9,3.24022149]
[1768529179901,3.47310506,141.99,141.91,3.24022149]
[1768529180107,3.47310506,142.01,141.91,3.24022149]
[1768529180499,98.5765,142.06,141.91,3.24022149]
[1768529180703,3.47310506,142.01,141.94,3.24022149]
[1768529182104,3.47310506,142.03,141.94,3.24022149]
[1768529183807,9.81160506,142.03,141.95,3.06095716]
[1768529184407,3.47310506,142.03,141.95,3.06095716]
[1768529184602,6.3388,142.02,141.95,3.06095716]
[1768529185801,3.47310506,142.03,141.95,3.06095716]
[1768529185802,6.3393,142.01,141.95,3.06095716]
[1768529186212,98.6031,142.02,141.93,3.06095716]
[1768529186510,6.3399,142.0,141.91,3.3297791]
[1768529187805,6.3399,142.0,141.92,3.3297791]
[1768529193514,6.3399,142.0,141.92,9.6727791]
[1768529193711,6.339,142.02,141.93,3.19273647]
[1768529194516,6.3392,142.01,141.93,9.53533647]
[1768529196223,3.47310506,142.02,141.95,3.19273647]
[1768529196718,3.47310506,142.04,141.96,3.19273647]
[1768529197720,3.47310506,142.06,141.96,3.19273647]
[1768529197918,6.3374,142.05,141.97,3.19273647]
[1768529201121,6.3374,142.05,141.98,3.19273647]
[1768529201319,3.47310506,142.06,141.98,3.19273647]
[1768529202123,9.81010506,142.06,141.99,9.53263647]
[1768529202428,99.7668463,142.11,142.0,3.19273647]
[1768529202429,3.47310506,142.08,142.0,3.19273647]
[1768529203618,6.3362,142.08,142.01,3.19273647]
[1768529207026,9.80840506,142.1,142.02,3.19273647]
[1768529208523,6.3353,142.1,142.02,3.19273647]
[1768529209027,6.3353,142.1,142.03,3.19273647]
[1768529210831,3.47310506,142.12,142.03,3.19273647]
[1768529211834,6.3348,142.11,142.03,3.19273647]
[1768529212035,3.47310506,142.12,142.03,3.19273647]
[1768529213233,6.3356,142.09,142.03,3.19273647]
[1768529214124,6.3363,142.08,142.0,3.29879309]
[1768529214329,3.47310506,142.09,142.0,3.29879309]
[1768529215134,6.337,142.06,142.0,3.29879309]
[1768529217327,6.3375,142.05,141.95,3.29879309]
[1768529217531,3.47310506,142.06,141.95,3.29879309]
[1768529218029,9.81020506,142.06,141.98,3.29879309]
[1768529219438,6.3374,142.05,141.98,3.29879309]
[1768529219638,3.47310506,142.06,141.98,3.29879309]
[1768529219836,3.47310506,142.04,141.98,3.29879309]
[1768529220138,3.47310506,142.04,141.96,3.29879309]
[1768529220636,6.3384,142.03,141.94,3.29879309]
[1768529220840,3.47310506,142.04,141.95,3.29879309]
[1768529221229,3.47310506,142.06,141.95,3.29879309]
[1768529221433,2.22277069,142.04,141.95,3.29879309]
[1768529221840,2.22277069,142.08,141.99,3.29879309]
[1768529222835,2.22277069,142.08,142.0,3.29879309]
[1768529224534,2.22277069,142.06,141.97,6.3406]
[1768529224743,2.22277069,142.04,141.98,3.29879309]
[1768529228242,2.22277069,142.0,141.95,9.64049309]
[1768529228742,2.22277069,142.0,141.95,3.29879309]
[1768529229544,98.5779,142.06,141.95,3.29879309]
[1768529229842,2.22277069,142.01,141.95,3.29879309]
[1768529230248,6.3384,142.03,141.95,3.29879309]
[1768529230442,2.22277069,142.01,141.95,3.29879309]
[1768529231946,2.22277069,141.99,141.93,3.29879309]
[1768529232149,2.22277069,141.99,141.88,3.29879309]
[1768529232443,2.22277069,141.98,141.91,6.3434]
[1768529232651,2.22277069,141.98,141.92,3.29879309]
[1768529233847,2.22277069,141.98,141.92,9.64179309]
[1768529234551,2.22277069,142.01,141.94,3.29879309]
[1768529235851,6.3385,142.03,141.95,3.29879309]
[1768529236048,2.22277069,142.01,141.95,3.29879309]
[1768529237750,6.3374,142.05,141.96,3.29879309]
[1768529237947,2.22277069,142.03,141.96,3.29879309]
[1768529240658,2.22277069,142.01,141.96,3.29879309]
[1768529241851,6.3388,142.02,141.96,3.29879309]
[1768529242042,2.22277069,142.01,141.96,3.29879309]
[1768529243151,6.3388,142.02,141.96,3.29879309]
[1768529243346,8.56157069,142.02,141.96,3.29879309]
[1768529245551,2.22277069,142.02,141.96,3.29879309]
[1768529245747,2.22277069,142.05,141.96,3.29879309]
[1768529247747,2.22277069,142.05,141.97,6.3408]
[1768529247954,2.22277069,142.05,141.97,9.56855874]
[1768529248754,2.22277069,142.05,141.98,3.22775874]
[1768529249455,8.56027069,142.05,141.98,3.22775874]
[1768529249650,2.22277069,142.03,141.98,3.22775874]
[1768529249856,2.22277069,142.03,141.95,9.56925874]
[1768529250950,6.3379,142.04,141.96,3.22775874]
[1768529251158,2.22277069,142.03,141.97,3.22775874]
[1768529251557,2.22277069,142.03,141.93,3.22775874]
[1768529251751,2.22277069,142.01,141.93,3.22775874]
[1768529252859,2.22277069,142.01,141.96,3.22775874]
[1768529253455,2.22277069,142.01,141.95,6.3414]
[1768529253956,6.3383,142.03,141.95,9.56915874]
[1768529254156,2.22277069,142.01,141.95,9.56915874]
[1768529254856,2.22277069,142.02,141.95,9.56915874]
[1768529255462,2.22277069,142.0,141.92,3.22775874]
[1768529256752,2.22277069,142.0,141.93,3.22775874]
[1768529257058,2.22277069,141.98,141.93,3.22775874]
[1768529257365,2.22277069,141.96,141.87,3.22775874]
[1768529257955,2.22277069,141.96,141.89,3.22775874]
[1768529258261,2.22277069,141.94,141.85,3.22775874]
[1768529258455,6.3425,141.94,141.85,3.22775874]
[1768529258854,2.22277069,141.93,141.85,3.22775874]
[1768529259457,6.3415,141.96,141.86,3.22775874]
[1768529259765,2.22277069,141.96,141.86,3.22775874]
[1768529260061,2.22277069,141.97,141.89,3.22775874]
[1768529260462,98.6236,141.99,141.89,3.22775874]
[1768529260659,2.22277069,141.95,141.89,3.22775874]
[1768529261063,6.3407,141.98,141.89,3.22775874]
[1768529261253,2.22277069,141.96,141.89,3.22775874]
[1768529261857,2.22277069,141.97,141.89,3.22775874]
[1768529262356,98.5956,142.03,141.9,3.22775874]
[1768529262559,2.22277069,141.99,141.9,3.22775874]
[1768529263361,2.22277069,142.01,141.92,3.22775874]
[1768529264969,2.22277069,141.99,141.92,9.57065874]
[1768529265370,6.3389,142.02,141.92,9.57065874]
[1768529265566,2.22277069,141.99,141.92,9.57065874]
[1768529265771,2.22277069,141.99,141.93,3.22775874]
[1768529265979,2.22277069,142.01,141.93,3.22775874]
[1768529266378,2.22277069,142.01,141.94,3.22775874]
[1768529267275,2.22277069,142.02,141.94,3.22775874]
[1768529267874,2.22277069,142.02,141.95,3.22775874]
[1768529269078,2.22277069,142.02,141.96,3.22775874]
[1768529269273,2.22277069,142.04,141.96,3.22775874]
[1768529270074,2.22277069,142.04,141.96,9.56875874]
[1768529271285,2.22277069,142.04,141.97,3.0551105]
[1768529272377,6.3375,142.05,141.97,3.0551105]
[1768529272580,2.22277069,142.04,141.97,3.0551105]
[1768529273983,6.3375,142.05,141.97,3.0551105]
[1768529274179,2.22277069,142.04,141.97,3.0551105]
[1768529274580,6.3375,142.05,141.97,9.3958105]
[1768529274783,2.22277069,142.06,141.98,3.0551105]
[1768529275384,2.22277069,142.04,141.98,3.0551105]
[1768529276881,2.22277069,142.04,141.94,3.0551105]
[1768529277085,2.22277069,142.01,141.94,3.0551105]
[1768529281489,6.339,142.02,141.94,3.0551105]
[1768529282492,6.3393,142.01,141.94,3.0551105]
[1768529282882,3.47413635,142.02,141.91,9.3983105]
[1768529283083,9.81383635,142.0,141.91,9.3983105]
[1768529283291,9.81383635,142.0,141.92,3.0551105]
[1768529283292,6.3397,142.0,141.92,3.0551105]
[1768529285193,3.47413635,142.01,141.93,3.0551105]
[1768529285593,3.47413635,142.01,141.93,9.3977105]
[1768529285890,3.47413635,142.04,141.94,3.0551105]
[1768529286096,3.47413635,142.04,141.96,3.0551105]
[1768529286800,3.47413635,142.04,141.97,3.0551105]
[1768529290794,3.47413635,142.04,141.94,9.3971105]
[1768529290992,3.47413635,142.02,141.92,3.0551105]
[1768529291193,6.3397,142.0,141.92,3.0551105]
[1768529291501,3.47413635,142.0,141.92,3.0551105]
[1768529292394,6.3402,141.99,141.92,3.0551105]
[1768529293402,3.47413635,141.98,141.89,3.0551105]
[1768529293788,98.6211,142.0,141.89,3.0551105]
[1768529293789,3.47413635,141.96,141.89,3.0551105]
[1768529294693,9.81563635,141.96,141.89,3.0551105]
[1768529297001,6.342,141.95,141.89,3.0551105]
[1768529298603,3.47413635,141.96,141.89,3.0551105]
[1768529300599,9.81553635,141.96,141.89,3.0551105]
[1768529304109,3.47413635,141.96,141.89,3.0551105]
[1768529305503,3.47413635,141.96,141.89,9.3995105]
[1768529306308,3.47413635,141.96,141.9,3.14183788]
[1768529307005,3.47413635,141.98,141.91,3.14183788]
[1768529307710,3.47413635,141.98,141.91,9.48533788]
[1768529308101,3.47413635,142.0,141.93,3.14183788]
[1768529309800,9.81373635,142.0,141.93,3.14183788]
[1768529311410,6.3401,141.99,141.9,9.48553788]
[1768529311611,3.47413635,142.0,141.9,9.48553788]
[1768529311811,3.47413635,141.98,141.9,9.48553788]
[1768529312407,3.47413635,141.98,141.92,3.14183788]
[1768529312907,3.47413635,142.0,141.92,3.14183788]
[1768529313812,9.81383635,142.0,141.92,9.48463788]
[1768529314813,6.3401,141.99,141.92,9.48463788]
[1768529318814,6.3401,141.99,141.93,3.14183788]
[1768529319014,3.47413635,142.0,141.93,3.14183788]
[1768529319808,9.81373635,142.0,141.93,3.14183788]
[1768529320012,6.3396,142.0,141.93,3.14183788]
[1768529320209,6.3396,142.0,141.94,3.14183788]
[1768529320915,9.81313635,142.02,141.94,3.14183788]
[1768529321918,6.3392,142.01,141.94,3.14183788]
[1768529323017,6.3401,141.99,141.91,9.48513788]
[1768529323216,3.47413635,141.98,141.91,9.48513788]
[1768529323416,6.3401,141.99,141.91,9.48513788]
[1768529324026,6.3405,141.98,141.91,3.14183788]
[1768529330129,3.47413635,141.99,141.91,9.48533788]
[1768529331828,9.81423635,141.99,141.91,9.48533788]
[1768529334222,6.3406,141.98,141.91,3.14183788]
[1768529334922,3.47413635,141.99,141.89,3.34328164]
[1768529335122,10.76596883,141.98,141.89,3.34328164]
[1768529335424,3.47413635,141.99,141.89,3.34328164]
[1768529335627,10.76897296,141.98,141.89,3.34328164]
[1768529335922,6.3416,141.96,141.89,3.34328164]
[1768529338830,3.47413635,141.97,141.9,3.34328164]
[1768529339832,9.81513635,141.97,141.9,3.34328164]
[1768529340029,3.47413635,141.99,141.91,3.34328164]
[1768529340234,5.55144459,141.98,141.91,3.34328164]
[1768529340534,3.47413635,141.99,141.91,3.34328164]
[1768529340734,3.47413635,141.99,141.92,3.34328164]
[1768529341130,3.47413635,141.99,141.88,98.696]
[1768529341131,3.47413635,142.01,141.94,3.34328164]
[1768529341330,6.339,142.02,141.94,3.34328164]
[1768529341532,5.55331347,142.01,141.94,3.34328164]
[1768529341732,6.339,142.02,141.94,3.34328164]
[1768529341936,5.55329275,142.01,141.94,3.34328164]
[1768529342232,6.339,142.02,141.94,3.34328164]
[1768529342537,5.55325992,142.01,141.94,3.34328164]
[1768529342838,6.339,142.02,141.95,3.34328164]
[1768529343237,3.47413635,142.03,141.95,3.34328164]
[1768529343439,7.77702702,142.02,141.95,3.34328164]
[1768529343634,2.22352147,142.02,141.95,3.34328164]
[1768529345036,2.22352147,142.02,141.96,3.34328164]
[1768529345537,2.22352147,142.02,141.96,9.68418164]
[1768529345735,2.22352147,142.02,141.97,3.34328164]
[1768529345941,98.568,142.07,141.97,3.34328164]
[1768529346238,2.22352147,142.03,141.97,3.34328164]
[1768529347040,2.22352147,142.05,141.98,3.34328164]
[1768529348036,2.22352147,142.05,141.98,9.68358164]
[1768529348740,2.22352147,142.05,141.99,3.34328164]
[1768529350741,8.56062147,142.06,141.99,3.34328164]
[1768529351041,8.55982147,142.08,142.0,3.34328164]
[1768529351335,8.55982147,142.08,142.01,3.34328164]
[1768529351731,6.3365,142.07,142.01,3.34328164]
[1768529351936,2.22352147,142.06,141.97,3.34328164]
[1768529352338,8.56052147,142.06,141.98,9.68348164]
[1768529360040,8.56052147,142.06,141.99,3.34328164]
[1768529362847,6.337,142.06,141.99,3.34328164]
[1768529363044,2.22352147,142.05,141.99,3.34328164]
[1768529365352,8.56092147,142.05,141.99,3.34328164]
[1768529369459,6.3374,142.05,141.99,3.34328164]
[1768529369653,8.56092147,142.05,141.99,3.34328164]
[1768529370754,6.3374,142.05,141.99,3.34328164]
[1768529370950,8.56092147,142.05,141.99,3.34328164]
[1768529373758,2.22352147,142.05,141.99,3.34328164]
[1768529375557,2.22352147,142.05,141.97,3.16874888]
[1768529375863,2.22352147,142.03,141.97,3.16874888]
[1768529377759,2.22352147,142.03,141.97,9.50954888]
[1768529380661,2.22352147,142.03,141.98,3.16874888]
[1768529382065,6.3377,142.05,141.98,3.16874888]
[1768529382267,6.3377,142.05,141.99,3.16874888]
[1768529382462,2.22352147,142.04,141.99,3.16874888]
[1768529382766,2.22352147,142.05,141.99,3.16874888]
[1768529384766,6.3369,142.06,141.99,3.16874888]
[1768529384968,2.22352147,142.05,141.99,3.16874888]
[1768529387770,2.22352147,142.07,142.0,3.16874888]
[1768529388070,5.53885839,142.06,142.0,3.16874888]
[1768529388372,8.56002147,142.07,142.0,3.16874888]
[1768529388572,5.54028679,142.06,142.0,3.16874888]
[1768529388762,8.56002147,142.07,142.0,3.16874888]
[1768529388964,5.54028678,142.06,142.0,3.16874888]
[1768529389166,8.56002147,142.07,142.0,3.16874888]
[1768529389471,5.54189753,142.06,142.0,3.16874888]
[1768529389664,8.56002147,142.07,142.0,3.16874888]
[1768529389864,5.54189753,142.06,142.0,3.16874888]
[1768529390164,8.56002147,142.07,142.0,3.16874888]
[1768529390464,5.54383074,142.06,142.0,3.16874888]
[1768529390665,8.56002147,142.07,142.0,3.16874888]
[1768529390864,5.5438261,142.06,142.0,3.16874888]
[1768529391065,8.56002147,142.07,142.0,3.16874888]
[1768529391269,5.54448284,142.06,142.0,3.16874888]
[1768529391465,6.337,142.06,141.97,9.69973016]
[1768529391671,2.22352147,142.05,141.98,3.35923016]
[1768529392874,2.22352147,142.05,141.99,3.35923016]
[1768529397777,6.337,142.06,141.99,3.35923016]
[1768529397973,8.56052147,142.06,141.99,3.35923016]
[1768529398676,2.22352147,142.04,141.95,3.35923016]
[1768529399379,8.56092147,142.05,141.98,9.69963016]
[1768529399569,8.56092147,142.05,141.99,3.35923016]
[1768529399773,2.22352147,142.05,141.99,3.35923016]
[1768529400371,8.56022147,142.07,142.0,3.35923016]
[1768529400569,5.54529419,142.06,142.0,3.35923016]
[1768529400870,8.56022147,142.07,142.0,3.35923016]
[1768529401077,5.54532653,142.06,142.0,3.35923016]
[1768529401377,8.56022147,142.07,142.0,3.35923016]
[1768529401576,5.54529532,142.06,142.01,3.35923016]
[1768529401879,2.22352147,142.11,142.01,3.35923016]
[1768529402080,5.54678413,142.1,142.04,9.69693016]
[1768529402276,2.22352147,142.11,142.04,3.35923016]
[1768529402480,5.54418263,142.1,142.04,3.35923016]
[1768529402670,2.22352147,142.11,142.04,3.35923016]
[1768529402872,2.22352147,142.09,142.04,3.35923016]
[1768529403072,6.3348,142.11,142.04,3.35923016]
[1768529403268,2.22352147,142.09,142.04,3.35923016]
[1768529403472,9.80531959,142.11,142.04,3.35923016]
[1768529403671,5.54214722,142.1,142.04,3.35923016]
[1768529403879,9.80531959,142.11,142.04,3.35923016]
[1768529404079,5.54213345,142.1,142.04,3.35923016]
[1768529404274,9.80531959,142.11,142.04,3.35923016]
[1768529404474,5.54048257,142.1,142.04,3.35923016]
[1768529404779,9.80531959,142.11,142.04,3.35923016]
[1768529405074,5.54048257,142.1,142.04,3.35923016]
[1768529405377,9.80531959,142.11,142.04,3.35923016]
[1768529405580,5.53902674,142.1,142.04,3.35923016]
[1768529405878,9.80531959,142.11,142.04,3.35923016]
[1768529406078,5.53902674,142.1,142.04,3.35923016]
[1768529406272,9.80531959,142.11,142.04,3.35923016]
[1768529406468,5.53776811,142.1,142.04,3.35923016]
[1768529406674,9.80531959,142.11,142.04,3.35923016]
[1768529406873,5.53776811,142.1,142.04,3.35923016]
[1768529407079,9.80531959,142.11,142.04,3.35923016]
[1768529407279,5.53668877,142.1,142.04,3.35923016]
[1768529407471,9.80531959,142.11,142.04,3.35923016]
[1768529407673,5.53668877,142.1,142.04,3.35923016]
[1768529407872,9.80531959,142.11,142.04,3.35923016]
[1768529409275,9.80531959,142.11,142.02,6.3384]
[1768529409276,6.3353,142.1,142.02,9.69763016]
[1768529409476,9.0047476,142.09,142.0,9.69843016]
[1768529409683,11.86991971,142.08,142.0,9.69843016]
[1768529409882,6.336,142.08,142.01,3.35923016]
[1768529414983,6.3365,142.07,142.01,3.35923016]
[1768529415979,6.337,142.06,141.99,3.35923016]
[1768529421884,3.47051959,142.07,141.99,3.35923016]
[1768529421885,3.47051959,142.07,142.0,3.30824555]
[1768529422088,3.47051959,142.09,142.0,3.30824555]
[1768529422683,9.80611959,142.09,142.01,3.30824555]
[1768529425490,6.336,142.08,142.01,3.30824555]
[1768529429187,6.3366,142.07,141.96,98.6384]
[1768529429393,6.3366,142.07,141.99,3.16546997]
[1768529430893,6.337,142.06,141.99,3.16546997]
[1768529431495,6.3379,142.04,141.96,9.50676997]
[1768529431694,6.3379,142.04,141.97,3.16546997]
[1768529433194,9.80781959,142.06,141.98,3.16546997]
[1768529433393,5.51906323,142.05,141.98,3.16546997]
[1768529433593,3.47051959,142.06,141.98,3.16546997]
[1768529434797,6.3374,142.05,141.98,3.16546997]
[1768529437398,3.47051959,142.06,141.94,3.16546997]
[1768529437594,5.51726407,142.05,141.95,3.16546997]
[1768529437795,5.51726407,142.04,141.95,3.16546997]
[1768529437995,3.47051959,142.06,141.95,3.16546997]
[1768529438200,5.5177201,142.05,141.95,3.16546997]
[1768529438394,5.5177201,142.04,141.95,3.16546997]
[1768529438597,3.47051959,142.06,141.95,3.16546997]
[1768529438794,6.338,142.04,141.96,3.16546997]
[1768529439304,3.47051959,142.06,141.96,3.16546997]
[1768529439497,5.51549731,142.05,141.96,3.16546997]
[1768529439703,6.3383,142.03,141.96,9.50666997]
[1768529441207,3.47051959,142.03,141.92,3.16546997]
[1768529442802,6.339,142.02,141.94,9.50766997]
[1768529443318,3.47051959,142.03,141.94,9.50766997]
[1768529444819,6.3392,142.01,141.94,9.50766997]
[1768529445121,6.3392,142.01,141.94,3.16546997]
[1768529454134,6.3392,142.01,141.9,98.6825]
[1768529454135,6.3388,142.02,141.96,3.24335023]
[1768529454428,3.47051959,142.03,141.96,3.24335023]
[1768529455439,3.47051959,142.05,141.96,3.24335023]
[1768529455939,6.3383,142.03,141.96,9.58455023]
[1768529456330,6.3383,142.03,141.97,3.24335023]
[1768529458736,6.3387,142.02,141.95,6.3417]
[1768529458937,6.3387,142.02,141.95,9.58505023]
[1768529460237,3.47051959,142.03,141.95,3.24335023]
[1768529460740,6.3388,142.02,141.95,9.58505023]
[1768529460939,3.47051959,142.03,141.96,3.24335023]
[1768529463836,9.80881959,142.03,141.96,3.24335023]
[1768529465143,6.3383,142.03,141.96,3.24335023]
[1768529465328,8.56161692,142.03,141.96,3.24335023]
[1768529470936,8.56161692,142.03,141.97,3.24335023]
[1768529476242,2.22331692,142.03,141.97,9.58415023]
[1768529477044,2.22331692,142.03,141.98,6.3404]
[1768529478144,2.22331692,142.03,141.98,9.58375023]
[1768529478745,6.3377,142.05,141.98,9.58375023]
[1768529478746,2.22331692,142.04,141.99,3.24335023]
[1768529480346,2.22331692,142.04,141.98,6.3404]
[1768529480647,2.22331692,142.04,141.98,9.58375023]
[1768529482146,8.56111692,142.04,141.98,9.58375023]
[1768529482545,8.56111692,142.04,141.98,3.24335023]
[1768529488953,2.22331692,142.04,141.98,3.24335023]
[1768529489950,2.22331692,142.04,141.98,9.58375023]
[1768529492454,8.56111692,142.04,141.96,9.39468354]
[1768529492653,2.22331692,142.02,141.96,9.39468354]
[1768529499857,6.3382,142.03,141.96,9.39468354]
[1768529500052,2.22331692,142.01,141.96,9.39468354]
[1768529502652,2.22331692,142.01,141.97,3.05378354]
[1768529502959,8.56151692,142.03,141.97,3.05378354]
[1768529511868,6.3382,142.03,141.97,3.05378354]
[1768529519274,5.51020041,142.02,141.97,3.05378354]
[1768529519478,6.3382,142.03,141.97,3.05378354]
[1768529519678,5.51019702,142.02,141.97,3.05378354]
[1768529519879,6.3382,142.03,141.97,3.05378354]
[1768529520082,5.51019702,142.02,141.97,3.05378354]
[1768529520280,6.3382,142.03,141.97,3.05378354]
[1768529520483,5.51032537,142.02,141.97,3.05378354]
[1768529520681,6.3382,142.03,141.97,3.05378354]
[1768529520981,5.50908505,142.02,141.97,3.05378354]
[1768529521181,6.3382,142.03,141.97,3.05378354]
[1768529521381,5.5074438,142.02,141.97,3.05378354]
[1768529521581,6.3382,142.03,141.97,3.05378354]
[1768529521782,5.50666845,142.02,141.97,3.05378354]
[1768529521983,6.3382,142.03,141.97,3.05378354]
[1768529522183,5.50639473,142.02,141.97,9.39458354]
[1768529522380,2.22331692,142.04,141.97,9.39458354]
[1768529522585,5.50624134,142.03,141.97,9.39458354]
[1768529522784,5.50624134,142.02,141.97,9.39458354]
[1768529522986,2.22331692,142.04,141.97,9.39458354]
[1768529523186,5.50622085,142.03,141.97,9.39458354]
[1768529523386,5.50622085,142.02,141.97,9.39458354]
[1768529523589,2.22331692,142.04,141.97,9.39458354]
[1768529523787,5.50628672,142.03,141.97,9.39458354]
[1768529524088,5.50628672,142.02,141.97,9.39458354]
[1768529524292,8.56111692,142.04,141.97,9.39458354]
[1768529524490,5.50581608,142.03,141.97,9.39458354]
[1768529524695,5.50581608,142.02,141.97,9.39458354]
[1768529524886,8.56111692,142.04,141.97,9.39458354]
[1768529525086,5.50589169,142.03,141.97,9.39458354]
[1768529525287,5.50589169,142.02,141.97,9.39458354]
[1768529525489,8.56111692,142.04,141.97,9.39458354]
[1768529525686,5.50565888,142.03,141.97,9.39458354]
[1768529525887,5.50565888,142.02,141.97,9.39458354]
[1768529526091,8.56111692,142.04,141.97,9.39458354]
[1768529526388,5.50548077,142.03,141.97,9.39458354]
[1768529526588,5.50548077,142.02,141.97,9.39458354]
[1768529526890,8.56111692,142.04,141.97,9.39458354]
[1768529527090,5.50466546,142.03,141.97,9.39458354]
[1768529527290,5.50466546,142.02,141.97,9.39458354]
[1768529527490,6.3378,142.04,141.97,9.39458354]
[1768529527690,5.50448721,142.03,141.97,9.39458354]
[1768529527888,5.50448721,142.02,141.97,9.39458354]
[1768529528093,6.3378,142.04,141.97,9.39458354]
[1768529528294,5.50441038,142.03,141.97,9.39458354]
[1768529528493,9.81156104,142.05,141.98,9.61744556]
[1768529528693,5.5046524,142.04,141.98,9.61744556]
[1768529528888,5.5046524,142.03,141.98,9.61744556]
[1768529529088,9.81156104,142.05,141.98,9.61744556]
[1768529529283,5.50479882,142.04,141.98,9.61744556]
[1768529529490,5.50479882,142.03,141.98,9.61744556]
[1768529529695,9.81156104,142.05,141.98,9.61744556]
[1768529529893,5.50471961,142.04,141.98,9.61744556]
[1768529530095,5.50471961,142.03,141.98,9.61744556]
[1768529530293,9.81156104,142.05,141.98,9.61744556]
[1768529530495,5.50473559,142.04,141.98,9.61744556]
[1768529530699,5.50473559,142.03,141.98,9.61744556]
[1768529530897,9.81156104,142.05,141.98,9.61744556]
[1768529531195,5.48215953,142.04,141.98,9.61744556]
[1768529531401,5.48215953,142.03,141.98,9.61744556]
[1768529531593,9.81156104,142.05,141.98,9.61744556]
[1768529531792,5.48270061,142.04,141.98,9.61744556]
[1768529531993,5.48270061,142.03,141.98,9.61744556]
[1768529532189,9.81156104,142.05,141.98,9.61744556]
[1768529532388,5.48270625,142.04,141.98,9.61744556]
[1768529532601,5.48270625,142.03,141.98,9.61744556]
[1768529532802,9.81156104,142.05,141.98,9.61744556]
[1768529532999,5.48253826,142.04,141.98,9.61744556]
[1768529533200,5.48253826,142.03,141.98,9.61744556]